fUSD/lending_fUSD_20251206
["ID","MTS","AMOUNT","RATE_DAILY","PERIOD"]
[396493774,1765003503431,-7000.01,0.000159,2]
[396493775,1765003503511,-10000.01,0.000159,2]
[396493776,1765003503685,-10000.01,0.000159,2]
[396493777,1765003503855,-10000.01,0.000159,2]
[396493778,1765003503908,-10000.01,0.000159,2]
[396493779,1765003503995,-10000.01,0.000159,2]
[396493780,1765003504384,-324.45510884,0.000159,2]
[396493781,1765003509243,-10000.01,0.000159,2]
[396493782,1765003509437,-10000.01,0.000159,2]
[396493783,1765003509627,-10000.01,0.000159,2]
[396493785,1765003515373,-10000.01,0.000159,2]
[396493786,1765003515538,-10000.01,0.000159,2]
[396493787,1765003515750,-10000.01,0.000159,2]
[396493788,1765003519812,-10000.01,0.000159,2]
[396493789,1765003520180,-10000.01,0.000159,2]
[396493790,1765003520434,-10000.01,0.000159,2]
[396493791,1765003527498,-10000.01,0.000159,2]
[396493792,1765003527663,-10000.01,0.000159,2]
[396493793,1765003527839,-10000.01,0.000159,2]
[396493794,1765003538445,-500.0,0.00015899,2]
[396493795,1765003538503,-500.0,0.00015899,2]
[396493796,1765003538561,-500.0,0.00015899,2]
[396493797,1765003538617,-500.0,0.00015899,2]
[396493798,1765003538675,-500.0,0.00015899,2]
[396493799,1765003538975,-5000.01,0.000159,2]
[396493800,1765003539086,-10000.01,0.000159,2]
[396493801,1765003546049,-500.0,0.00015899,2]
[396493802,1765003546239,-9000.01,0.000159,2]
[396493803,1765003548995,-10000.01,0.000159,2]
[396493804,1765003549259,-10000.01,0.000159,2]
[396493805,1765003549439,-10000.01,0.000159,2]
[396493806,1765003551964,-10000.01,0.000159,2]
[396493807,1765003552140,-10000.01,0.000159,2]
[396493808,1765003552296,-10000.01,0.000159,2]
[396493809,1765003555471,-10000.01,0.000159,2]
[396493810,1765003555570,-10000.01,0.000159,2]
[396493811,1765003555681,-10000.01,0.000159,2]
[396493812,1765003558295,-250.0,0.00015553,2]
[396493813,1765003558390,-9500.01,0.000159,2]
[396493814,1765003558575,-10000.01,0.000159,2]
[396493815,1765003558750,-200.0,0.00015491,2]
[396493816,1765003558848,-9600.01,0.000159,2]
[396493817,1765003561187,-10000.01,0.000159,2]
[396493818,1765003561365,-300.0,0.00015899,2]
[396493819,1765003561508,-885.78103894,0.0001584,2]
[396493820,1765003561519,-8514.22896106,0.000159,2]
[396493821,1765003561670,-10000.01,0.000159,2]
[396493822,1765003564317,-10000.01,0.000159,2]
[396493823,1765003564502,-10000.01,0.000159,2]
[396493824,1765003564675,-10000.01,0.000159,2]
[396493825,1765003567966,-10000.01,0.000159,2]
[396493826,1765003568262,-10000.01,0.000159,2]
[396493827,1765003568409,-4276.79575382,0.000159,2]
[396493828,1765003568461,-1446.41849236,0.000159,2]
[396493829,1765003568623,-1000.0,0.000159,2]
[396493830,1765003582775,-250.0,0.00015949,2]
[396493831,1765003592928,437.88553039,0.000159,2]
[396493833,1765003624733,1919.96,0.00015715,2]
[396493834,1765003631987,8080.05,0.000159,2]
[396493835,1765003632041,10000.01,0.000159,2]
[396493836,1765003632097,10000.01,0.000159,2]
[396493837,1765003632153,10000.01,0.000159,2]
[396493838,1765003632206,10000.01,0.000159,2]
[396493839,1765003632259,10000.01,0.000159,2]
[396493840,1765003632309,10000.01,0.000159,2]
[396493841,1765003632367,10000.01,0.000159,2]
[396493842,1765003632425,10000.01,0.000159,2]
[396493844,1765003632483,10000.01,0.000159,2]
[396493849,1765003633066,-523.10698091,0.000159,2]
[396493856,1765003644209,-9562.12446961,0.000159,2]
[396493857,1765003644374,-10000.01,0.000159,2]
[396493858,1765003644543,-10000.01,0.000159,2]
[396493860,1765003644718,-10000.01,0.000159,2]
[396493861,1765003644954,-10000.01,0.000159,2]
[396493862,1765003645067,-10000.01,0.000159,2]
[396493863,1765003645252,-10000.01,0.000159,2]
[396493864,1765003645419,-10000.01,0.000159,2]
[396493866,1765003645596,-10000.01,0.000159,2]
[396493868,1765003645751,-10000.01,0.000159,2]
[396493869,1765003646420,500.0,7.513e-05,5]
[396493872,1765003650696,-10000.01,0.000159,2]
[396493873,1765003650897,-10000.01,0.000159,2]
[396493874,1765003650971,-10000.01,0.000159,2]
[396493876,1765003651146,-10000.01,0.000159,2]
[396493877,1765003651286,-10000.01,0.000159,2]
[396493878,1765003651459,-10000.01,0.000159,2]
[396493879,1765003651619,-10000.01,0.000159,2]
[396493880,1765003651804,-10000.01,0.000159,2]
[396493883,1765003656611,-10000.01,0.000159,2]
[396493884,1765003656789,-10000.01,0.000159,2]
[396493885,1765003656959,-10000.01,0.000159,2]
[396493886,1765003657120,-10000.01,0.000159,2]
[396493887,1765003657286,-10000.01,0.000159,2]
[396493888,1765003657459,-10000.01,0.000159,2]
[396493889,1765003657632,-10000.01,0.000159,2]
[396493890,1765003657785,-10000.01,0.000159,2]
[396494063,1765003832419,-1788.17599154,0.000158,2]
[396494064,1765003832430,-7186.59396128,0.000158,2]
[396494065,1765003832440,-3605.50531166,0.00015818,2]
[396494066,1765003832451,-672.37743502,0.00015818,2]
[396494067,1765003832480,-836.36030391,0.00015818,2]
[396494093,1765003838316,-881.42399107,0.00015818,2]
[396494094,1765003838451,-4900.95405234,0.00015818,2]
[396494095,1765003838461,-1200.0,0.00015898,2]
[396494096,1765003838470,-300.0,0.00015898,2]
[396494097,1765003838479,-300.0,0.00015898,2]
[396494098,1765003838489,-1200.0,0.00015898,2]
[396494099,1765003838498,-300.0,0.00015898,2]
[396494100,1765003838507,-283.0,0.00015898,2]
[396494101,1765003838516,-195.0,0.00015898,2]
[396494102,1765003838525,-300.0,0.00015899,2]
[396494103,1765003838535,-300.0,0.00015899,2]
[396494104,1765003838543,-411.8549,0.00015899,2]
[396494105,1765003838552,-65329.6017517,0.00015899,2]
[396494106,1765003838561,-500.0,0.00015899,2]
[396494107,1765003838570,-222.72595779,0.00015899,2]
[396494108,1765003838580,-500.0,0.00015899,2]
[396494109,1765003838589,-330.47198477,0.00015899,2]
[396494110,1765003838598,-2326.5291976,0.00015899,2]
[396494111,1765003838607,-914.89,0.00015899,2]
[396494112,1765003838616,-401834.37854948,0.000159,2]
[396494113,1765003838625,-1000.0,0.000159,2]
[396494114,1765003838634,-219.46687473,0.000159,2]
[396494115,1765003838643,-196.13256283,0.000159,2]
[396494116,1765003838652,-2133.31916329,0.000159,2]
[396494117,1765003838661,-1664.18092472,0.000159,2]
[396494118,1765003838670,-164.77039941,0.000159,2]
[396494119,1765003838679,-598.83320402,0.000159,2]
[396494120,1765003838688,-300.0,0.00015919,2]
[396494121,1765003838698,-786.9941863,0.00015919,2]
[396494122,1765003838707,-200.0,0.00015949,2]
[396494123,1765003838716,-8974.76995278,0.00015958,2]
[396494125,1765003838725,-250.0,0.00015979,2]
[396494127,1765003838735,-1000.0,0.00015998,2]
[396494129,1765003838744,-1000.0,0.00015998,3]
[396494131,1765003838754,-1358.183,0.00015999,2]
[396494133,1765003838763,-556.83585957,0.00015999,2]
[396494135,1765003838776,-500.0,0.00015999,2]
[396494138,1765003838786,-500.0,0.00015999,2]
[396494141,1765003838796,-1000.0,0.00015999,3]
[396494144,1765003838806,-344495.4864722,0.00016,4]
[396494337,1765003840857,-1098.86227319,0.00016,4]
[396494631,1765003843638,-87009.69766577,0.00016,4]
[396494633,1765003843648,-200.0,0.00016,4]
[396494635,1765003843658,-202.60109989,0.00016,4]
[396494637,1765003843667,-3608.1486971,0.00016012,2]
[396494639,1765003843677,-5167.255323,0.00016019,2]
[396494641,1765003843686,-399487.7169168,0.00016019,2]
[396494643,1765003843696,-10767.57234228,0.00016084,2]
[396494645,1765003843705,-32084.63,0.00016085,2]
[396494647,1765003843714,-200.0,0.00016108,2]
[396494649,1765003843723,-8974.76995278,0.00016116,2]
[396494651,1765003843732,-914.89,0.00016173,2]
[396494653,1765003843742,-1000.0,0.00016178,2]
[396494655,1765003843751,-151.0,0.00016178,2]
[396494657,1765003843760,-200.0,0.0001627,2]
[396494659,1765003843769,-8974.76995278,0.00016274,2]
[396494661,1765003843779,-200.0,0.00016326,2]
[396494663,1765003843787,-500.0,0.00016326,2]
[396494665,1765003843797,-500.0,0.00016326,2]
[396494666,1765003843807,-516.21665605,0.00016326,2]
[396494668,1765003843816,-500.0,0.00016326,2]
[396494670,1765003843825,-500.0,0.00016326,2]
[396494673,1765003843835,-500.0,0.00016326,2]
[396494674,1765003843844,-500.0,0.00016326,2]
[396494676,1765003843853,-500.0,0.00016326,2]
[396494678,1765003843863,-500.0,0.00016326,2]
[396494681,1765003843872,-500.0,0.00016326,2]
[396494682,1765003843882,-500.0,0.00016326,2]
[396494685,1765003843891,-500.0,0.00016326,2]
[396494687,1765003843901,-500.0,0.00016326,2]
[396494689,1765003843911,-500.0,0.00016326,2]
[396494690,1765003843922,-500.0,0.00016326,2]
[396494692,1765003843932,-500.0,0.00016326,2]
[396494694,1765003843941,-219.50488883,0.00016326,2]
[396494695,1765003843950,-574.12855637,0.00016326,2]
[396494696,1765003843959,-200.0,0.00016326,2]
[396494697,1765003843968,-178.92640444,0.00016326,2]
[396494698,1765003843977,-152.9447308,0.00016326,2]
[396494699,1765003843986,-500.0,0.00016326,2]
[396494700,1765003843995,-151.0,0.00016326,2]
[396494701,1765003844005,-151.0,0.00016326,2]
[396494702,1765003844014,-200.0,0.00016326,2]
[396494703,1765003844023,-151.0,0.00016326,2]
[396494704,1765003844031,-151.0,0.00016326,2]
[396494705,1765003844040,-151.0,0.00016326,2]
[396494706,1765003844049,-151.0,0.00016326,2]
[396494707,1765003844058,-151.0,0.00016326,2]
[396494708,1765003844067,-151.0,0.00016326,2]
[396494709,1765003844076,-151.0,0.00016326,2]
[396494711,1765003844086,-151.0,0.00016326,2]
[396494714,1765003844095,-151.0,0.00016326,2]
[396494717,1765003844104,-1678.50694508,0.00016349,2]
[396494718,1765003844115,-165.0,0.00016377,2]
[396494721,1765003844126,-1367.36887395,0.00016393,2]
[396494723,1765003844136,-166.66,0.00016406,2]
[396494724,1765003844145,-309.0,0.00016409,2]
[396494727,1765003844162,-155.83493748,0.0001643,2]
[396494729,1765003844171,-8974.76995278,0.00016432,2]
[396494731,1765003844180,-9463.4,0.00016438,2]
[396494733,1765003844191,-914.89,0.00016447,2]
[396494734,1765003844200,-1678.50694508,0.0001646,2]
[396494737,1765003844211,-166.66,0.00016463,2]
[396494738,1765003844222,-1678.50694508,0.0001657,2]
[396494741,1765003844234,-8974.76995278,0.00016589,2]
[396494743,1765003844243,-1678.50694508,0.0001668,2]
[396494745,1765003844252,-914.89,0.00016721,2]
[396494747,1765003844262,-1000.0,0.00016726,2]
[396494749,1765003844271,-151.0,0.00016726,2]
[396494751,1765003844280,-166.66,0.00016737,2]
[396494753,1765003844289,-3446.0,0.0001674,2]
[396494754,1765003844298,-611.0,0.0001674,2]
[396494756,1765003844307,-1323.0,0.0001674,2]
[396494758,1765003844317,-1605.0,0.0001674,2]
[396494761,1765003844327,-612.908,0.0001674,2]
[396494763,1765003844336,-1259.0,0.0001674,2]
[396494764,1765003844346,-910.0,0.0001674,2]
[396494766,1765003844356,-4707.0,0.0001674,2]
[396494769,1765003844365,-562.0,0.0001674,2]
[396494771,1765003844375,-6513.0,0.0001674,2]
[396494772,1765003844383,-8974.76995278,0.00016747,2]
[396494774,1765003844393,-500.0,0.00016773,2]
[396494777,1765003844403,-500.0,0.00016773,2]
[396494779,1765003844413,-500.0,0.00016773,2]
[396494781,1765003844423,-500.0,0.00016773,2]
[396494782,1765003844432,-500.0,0.00016773,2]
[396494785,1765003844443,-500.0,0.00016773,2]
[396494787,1765003844452,-500.0,0.00016773,2]
[396494789,1765003844462,-500.0,0.00016773,2]
[396494791,1765003844473,-500.0,0.00016773,2]
[396494793,1765003844482,-629.78,0.00016782,2]
[396494795,1765003844491,-1678.50694508,0.0001679,2]
[396494797,1765003844500,-1195.42,0.00016801,2]
[396494799,1765003844510,-730.0481731,0.00016874,2]
[396494801,1765003844519,-200.0,0.00016874,2]
[396494803,1765003844528,-1678.50694508,0.000169,2]
[396494805,1765003844538,-330.90927664,0.000169,2]
[396494807,1765003844547,-267.04036714,0.000169,2]
[396494809,1765003844556,-961.95684488,0.000169,2]
[396494811,1765003844565,-996.0735294,0.000169,2]
[396494813,1765003844575,-1405.3743013,0.000169,2]
[396494815,1765003844584,-426.25572377,0.000169,2]
[396494817,1765003844597,-8974.76995278,0.00016905,2]
[396494819,1765003844607,-150.0,0.00016915,2]
[396494821,1765003844616,-204.57,0.00016936,2]
[396494822,1765003844626,-914.89,0.00016995,2]
[396494825,1765003844637,-300.0,0.00016999,2]
[396494827,1765003844647,-186621.88485593,0.00017,2]
[396494829,1765003844661,-642.570018,0.00017,2]
[396494984,1765003846311,-262.9,0.00017,2]
[396494992,1765003846375,-1058.8005927,0.00017,2]
[396495000,1765003846438,-269.99999995,0.00017,2]
[396495014,1765003846561,-630.21210057,0.00017,2]
[396495402,1765004081579,-387.0,0.000157,2]
[396495403,1765004081816,-24.8549,0.000157,2]
[396495404,1765004081839,-237.47725156,0.00015749,2]
[396495405,1765004084587,-62.52274844,0.00015749,2]
[396495406,1765004084614,-489.22929385,0.00015798,2]
[396495407,1765004086723,-10.77070615,0.00015798,2]
[396495408,1765004086747,-222.72595779,0.00015798,2]
[396495409,1765004086769,-259.1885156,0.00015798,2]
[396495410,1765004089006,-71.28346917,0.00015798,2]
[396495411,1765004089030,-275.69555102,0.00015798,2]
[396495412,1765004090619,-151.09913669,0.00015798,2]
[396495413,1765004093388,-73.20531229,0.00015798,2]
[396495414,1765004093415,-220.61719017,0.00015798,2]
[396495415,1765004093442,-145.16964192,0.00015798,2]
[396495416,1765004097577,-135.82518469,0.00015798,2]
[396495417,1765004097604,-164.17481531,0.00015798,2]
[396495428,1765004141805,-300.0,0.00015797,2]
[396495429,1765004141831,-25.90218392,0.00015797,2]
[396495430,1765004146398,-244.77459264,0.00015797,2]
[396495431,1765004149323,-177.63303833,0.00015758,2]
[396495432,1765004151172,-188.66930105,0.00015699,2]
[396495433,1765004152761,-166.27444294,0.00015699,2]
[396495434,1765004154429,-255.83707465,0.00015699,2]
[396495435,1765004157440,-160.25319791,0.00015699,2]
[396495436,1765004159080,-251.07577082,0.00015699,2]
[396495437,1765004162988,-172.53378512,0.00015699,2]
[396495438,1765004164705,-223.11589934,0.00015699,2]
[396495442,1765004167469,-528.15159698,0.00015699,2]
[396495443,1765004171276,-246.0204157,0.00015699,2]
[396495444,1765004175168,-429.40019948,0.00015699,2]
[396495446,1765004177317,-379.94827151,0.00015699,2]
[396495447,1765004179474,-264.66655177,0.00015699,2]
[396495448,1765004182668,-215.50611334,0.00015699,2]
[396495451,1765004187651,-231.80555242,0.00015699,2]
[396495452,1765004187678,-136.7213925,0.000157,2]
[396495453,1765004190010,-214.51315137,0.000157,2]
[396495454,1765004194559,-35.76545613,0.000157,2]
[396495455,1765004194582,-37.68696167,0.00015758,2]
[396495456,1765004194606,-167.93836126,0.00015797,2]
[396495457,1765004197466,-168.25858912,0.00015797,2]
[396495458,1765004199045,-179.25317493,0.00015699,2]
[396495459,1765004200932,-245.60118425,0.00015699,2]
[396495460,1765004200957,-156.0888031,0.00015797,2]
[396495461,1765004204054,-272.84819235,0.00015797,2]
[396495462,1765004206611,-164.18927761,0.00015797,2]
[396495463,1765004206634,-133.88666495,0.00015797,2]
[396495464,1765004208945,-61.11333505,0.00015797,2]
[396495465,1765004208971,-335.82518469,0.00015798,2]
[396495466,1765004209000,-17.01861064,0.00015798,2]
[396495467,1765004214360,-328.95935567,0.00015798,2]
[396495468,1765004217459,-154.02203369,0.00015798,2]
[396495469,1765004217481,-18.96668081,0.00015798,2]
[396495470,1765004221590,-156.3663626,0.00015797,2]
[396495473,1765004225905,-143.6336374,0.00015797,2]
[396495474,1765004225930,-156.3663626,0.00015798,2]
[396495476,1765004228724,-300.0,0.00015797,2]
[396495477,1765004228747,-65.29218355,0.00015798,2]
[396495479,1765004231350,-247.46030983,0.00015798,2]
[396495480,1765004233327,-11.91446321,0.00015798,2]
[396495481,1765004233355,-245.97796631,0.00015798,2]
[396495492,1765004321706,-166.68210961,0.0001575,2]
[396495493,1765004325720,-192.73060826,0.0001575,2]
[396495494,1765004329105,-154.04791848,0.0001575,2]
[396495496,1765004332441,-391.22279463,0.0001575,2]
[396495497,1765004334446,-294.24846006,0.0001575,2]
[396495498,1765004336530,-204.21828752,0.0001575,2]
[396495499,1765004338800,-184.46659073,0.0001575,2]
[396495502,1765004340652,-383.16567383,0.0001575,2]
[396495508,1765004346671,-184.46659073,0.000157,2]
[396495509,1765004346700,-262.10058499,0.0001575,2]
[396495510,1765004350447,-200.0,0.0001575,2]
[396495511,1765004353658,-165.1044541,0.0001575,2]
[396495514,1765004355105,-294.80185281,0.0001575,2]
[396495519,1765004359623,-413.69061537,0.0001575,2]
[396495520,1765004361845,-380.42943917,0.0001575,2]
[396495527,1765004411717,-200.45362261,0.00015641,2]
[396495529,1765004413738,-79.54637739,0.00015641,2]
[396495530,1765004413761,-150.0,0.00015641,2]
[396495531,1765004413785,-77.52967361,0.0001575,2]
[396495537,1765004486902,-243.45359112,0.00015699,2]
[396495538,1765004489580,-499.07298463,0.00015699,2]
[396495539,1765004492674,-269.5080365,0.00015699,2]
[396495540,1765004496692,-157.46286867,0.00015699,2]
[396495541,1765004500492,-293.73804115,0.00015699,2]
[396495542,1765004503044,-200.0,0.00015699,2]
[396495543,1765004505668,-478.49219958,0.00015699,2]
[396495544,1765004508531,-458.69138335,0.00015699,2]
[396495545,1765004510167,-2.80229988,0.00015699,2]
[396495546,1765004510190,-217.98138319,0.00015699,2]
[396495547,1765004548001,-153.76618104,0.00015699,2]
[396495548,1765004548026,-355.75589604,0.000157,2]
[396495549,1765004551366,-217.75805945,0.000157,2]
[396495550,1765004554047,-191.4412621,0.000157,2]
[396495552,1765004556302,-186.57,0.000157,2]
[396495553,1765004559528,-226.73821366,0.000157,2]
[396495554,1765004561013,-177.2784073,0.000157,2]
[396495556,1765004563595,-256.53172956,0.000157,2]
[396495557,1765004565829,-253.13460407,0.000157,2]
[396495558,1765004568715,-300.0,0.000157,2]
[396495559,1765004570668,-245.76106695,0.000157,2]
[396495561,1765004573410,-500.0,0.000157,2]
[396495562,1765004575669,-249.80695806,0.000157,2]
[396495563,1765004579536,-300.0,0.000157,2]
[396495564,1765004581671,-21.47117642,0.000157,2]
[396495565,1765004581693,-149.29081231,0.000157,2]
[396495566,1765004583261,-95.03276176,0.000157,2]
[396495567,1765004583285,-114.76966087,0.00015725,2]
[396495568,1765004592350,-207.34849227,0.00015621,2]
[396495569,1765004594398,-250.0,0.00015621,2]
[396495570,1765004597067,-414.55378881,0.00015621,2]
[396495571,1765004598628,-308.91325252,0.00015621,2]
[396495572,1765004601352,-472.68663344,0.00015621,2]
[396495573,1765004604090,-297.31035049,0.00015621,2]
[396495574,1765004606812,-191.628433,0.00015621,2]
[396495575,1765004609667,-181.99429266,0.00015599,2]
[396495576,1765004613141,-192.74187293,0.00015599,2]
[396495577,1765004615999,-125.26383441,0.00015599,2]
[396495578,1765004616024,-174.77087134,0.00015621,2]
[396495579,1765004618781,-175.67817167,0.00015621,2]
[396495580,1765004621160,-337.66784844,0.00015621,2]
[396495583,1765004711769,-150.0,0.00015288,2]
[396495584,1765004711794,-81.51766019,0.00015288,2]
[396495585,1765004714521,-68.48233981,0.00015288,2]
[396495586,1765004714545,-150.0,0.00015288,2]
[396495587,1765004714570,-37.51766019,0.00015288,2]
[396495588,1765004716788,404.9577535,0.00025,120]
[396495592,1765004758308,2127.06,0.00022,30]
[396495625,1765004904286,166.66,0.00014157,2]
[396495626,1765004904475,166.66,0.00014455,2]
[396495627,1765004904687,166.66,0.00014753,2]
[396495628,1765004906033,166.66,0.00015051,2]
[396495632,1765004910434,2805.087777,0.00015173,2]
[396495648,1765004923542,1315.582396,0.00015173,2]
[396495738,1765005031766,-277.0,0.00015249,2]
[396495739,1765005031776,-300.0,0.00015249,2]
[396495741,1765005031787,-112.48233981,0.00015288,2]
[396495742,1765005031796,-150.0,0.00015288,2]
[396495743,1765005031806,-150.0,0.00015288,2]
[396495744,1765005031816,-150.0,0.00015288,2]
[396495745,1765005031830,-150.0,0.00015288,2]
[396495746,1765005031844,-150.0,0.00015288,2]
[396495747,1765005031853,-150.0,0.00015288,2]
[396495748,1765005031863,-166.66,0.00015349,2]
[396495749,1765005031873,-1200.0,0.00015569,2]
[396495750,1765005031882,-1200.0,0.0001557,2]
[396495751,1765005031891,-150.0,0.00015571,2]
[396495752,1765005031900,-4708.45,0.00015572,2]
[396495753,1765005031909,-4708.45,0.00015572,2]
[396495754,1765005031918,-202.0,0.00015581,2]
[396495755,1765005031927,-300.0,0.00015581,2]
[396495756,1765005031937,-1169.4619,0.00015582,2]
[396495757,1765005031946,-5637.99263398,0.00015582,2]
[396495758,1765005031957,-7804.11883803,0.00015582,2]
[396495759,1765005031968,-574.6,0.00015582,2]
[396495760,1765005032751,-65018.75769844,0.00015582,2]
[396495761,1765005032764,-99630.97180269,0.00015582,2]
[396495762,1765005032776,-97524.92007074,0.00015582,2]
[396495763,1765005032796,-820.7253007,0.00015582,2]
[396495764,1765005032811,-1501.88313328,0.00015582,2]
[396495765,1765005032821,-2493.21781416,0.00015582,2]
[396495766,1765005032858,-458.44747329,0.00015582,2]
[396495768,1765005037567,-2067.48569393,0.00015582,2]
[396495769,1765005037640,-1169.68830879,0.00015582,2]
[396495770,1765005037652,-475297.19123197,0.00015582,2]
[396495771,1765005037663,-2602.94117491,0.00015598,2]
[396495772,1765005037673,-150.0,0.00015616,2]
[396495773,1765005037683,-166.66,0.00015647,2]
[396495774,1765005037692,-779.66,0.00015681,2]
[396495775,1765005037702,-299615.7876876,0.00015682,2]
[396495776,1765005037713,-3134.02263624,0.00015698,2]
[396495777,1765005037723,-288.6588,0.00015699,2]
[396495778,1765005037732,-879.14378257,0.000157,2]
[396495779,1765005037741,-2602.94117484,0.00015743,2]
[396495780,1765005037750,-111.00242913,0.0001575,2]
[396495781,1765005037759,-318.60185623,0.00015788,2]
[396495782,1765005037769,-200.0,0.00015789,2]
[396495783,1765005037778,-500.0,0.00015789,2]
[396495784,1765005037791,-200.0,0.00015789,2]
[396495785,1765005037800,-397.18293755,0.00015797,2]
[396495786,1765005037809,-500.0,0.00015798,2]
[396495787,1765005037819,-500.0,0.00015798,2]
[396495788,1765005037828,-500.0,0.00015798,2]
[396495789,1765005037838,-500.0,0.00015798,2]
[396495790,1765005037848,-467.53532303,0.00015798,2]
[396495791,1765005037857,-500.0,0.00015798,2]
[396495792,1765005037869,-500.0,0.00015798,2]
[396495794,1765005037878,-500.0,0.00015798,2]
[396495795,1765005037887,-500.0,0.00015798,2]
[396495796,1765005037896,-284.95625467,0.00015798,2]
[396495797,1765005037906,-501.80024857,0.00015798,2]
[396495798,1765005037915,-151.0,0.00015798,2]
[396495799,1765005037924,-151.0,0.00015798,2]
[396495800,1765005037937,-1000.0,0.000158,2]
[396495801,1765005037946,-250.0,0.00015804,2]
[396495802,1765005037955,-3134.02263619,0.00015832,2]
[396495803,1765005037965,-3251.97,0.00015852,2]
[396495804,1765005037974,-150.0,0.00015854,2]
[396495805,1765005037984,-150.0,0.00015854,2]
[396495806,1765005037993,-150.0,0.00015854,2]
[396495807,1765005038002,-315.0,0.00015886,2]
[396495808,1765005038012,-2602.94117484,0.00015887,2]
[396495809,1765005038021,-1027.74862575,0.000159,2]
[396495810,1765005038031,-1027.74862571,0.000159,2]
[396495811,1765005038040,-1027.74862571,0.000159,2]
[396495812,1765005038050,-1027.74862571,0.000159,2]
[396495813,1765005038059,-1027.74862571,0.000159,2]
[396495814,1765005038069,-1027.74862571,0.000159,2]
[396495815,1765005038079,-779.66,0.00015955,2]
[396495816,1765005038088,-3134.02263619,0.00015965,2]
[396495817,1765005038099,-1000.0,0.00015998,3]
[396495818,1765005038108,-500.0,0.00015999,2]
[396495819,1765005038117,-500.0,0.00015999,2]
[396495820,1765005038126,-500.0,0.00015999,2]
[396495821,1765005038135,-500.0,0.00015999,2]
[396495822,1765005038144,-500.0,0.00015999,2]
[396495823,1765005038154,-556.83585957,0.00015999,2]
[396495824,1765005038163,-500.0,0.00015999,2]
[396495825,1765005038172,-588.90373772,0.00015999,2]
[396495826,1765005038181,-500.0,0.00015999,2]
[396495827,1765005038191,-500.0,0.00015999,2]
[396495828,1765005038200,-500.0,0.00015999,2]
[396495829,1765005038209,-500.0,0.00015999,2]
[396495830,1765005038219,-500.0,0.00015999,2]
[396495831,1765005038227,-500.0,0.00015999,2]
[396495832,1765005038237,-500.0,0.00015999,2]
[396495833,1765005038247,-500.0,0.00015999,2]
[396495834,1765005038256,-1000.0,0.00015999,3]
[396495835,1765005038265,-500.0,0.00016,4]
[396495836,1765005038275,-576.0,0.00016,4]
[396495837,1765005038285,-150.0,0.00016,4]
[396495838,1765005038294,-150.0,0.00016,2]
[396495839,1765005038304,-500.0,0.00016,4]
[396495840,1765005038313,-155.97160644,0.00016,4]
[396495841,1765005038322,-500.0,0.00016,2]
[396495842,1765005038331,-150.0,0.00016,2]
[396495843,1765005038340,-500.0,0.00016,4]
[396495844,1765005038350,-150.0,0.00016,2]
[396495845,1765005038362,-150.0,0.00016,4]
[396495846,1765005038371,-150.0,0.00016,2]
[396495847,1765005038380,-500.0,0.00016,4]
[396495848,1765005038389,-500.0,0.00016018,2]
[396495849,1765005038398,-500.0,0.00016018,2]
[396495850,1765005038407,-609.99983707,0.00016018,2]
[396495851,1765005038417,-500.0,0.00016018,2]
[396495852,1765005038426,-2602.94117484,0.00016032,2]
[396495853,1765005038435,-163.25,0.00016085,2]
[396495854,1765005038446,-7327.84,0.00016094,2]